bitfinex/quotes_SOLUSD_20230110
["timestamp","ask_amount","ask_price","bid_price","bid_amount"]
[1673367642293,20.0,16.157,16.135,20.0]
[1673367642501,20.0,16.157,16.136,37.0]
[1673367642720,39.54,16.163,16.136,143.04323942]
[1673367643052,39.54,16.163,16.137,330.822038]
[1673367643347,20.0,16.159,16.138,71.56190753]
[1673367643565,20.0,16.159,16.138,118.05190753]
[1673367643776,20.0,16.159,16.139,14.56190753]
[1673367643970,20.0,16.159,16.141,20.0]
[1673367644181,17.0,16.158,16.141,20.0]
[1673367644396,109.4538,16.159,16.142,63.48]
[1673367644808,109.4538,16.159,16.142,78.04190753]
[1673367645028,20.0,16.158,16.142,78.04190753]
[1673367646797,17.0,16.157,16.142,46.48]
[1673367647243,17.0,16.157,16.141,14.42325667]
[1673367647451,17.0,16.157,16.142,46.48]
[1673367647854,39.54,16.163,16.143,37.0]
[1673367648085,116.2083,16.164,16.144,20.0]
[1673367648404,116.2083,16.164,16.146,20.0]
[1673367648613,116.2083,16.164,16.147,37.0]
[1673367648822,116.2083,16.164,16.147,83.46]
[1673367649236,116.2083,16.164,16.148,20.0]
[1673367649456,20.0,16.163,16.149,20.0]
[1673367649657,116.2083,16.164,16.149,66.46]
[1673367650728,116.2083,16.164,16.15,37.0]
[1673367651042,116.2083,16.164,16.151,20.0]
[1673367651356,114.6879,16.167,16.152,17.0]
[1673367651550,20.0,16.166,16.152,17.0]
[1673367651761,20.0,16.166,16.153,46.44]
[1673367652086,20.0,16.166,16.154,17.0]
[1673367652275,114.6879,16.167,16.154,17.0]
[1673367652489,114.6879,16.167,16.155,46.44]
[1673367652714,114.6879,16.167,16.154,46.44]
[1673367652927,20.0,16.166,16.153,46.44]
[1673367653666,17.0,16.165,16.152,113.8927]
[1673367653872,111.1457,16.164,16.152,113.8927]
[1673367654073,20.0,16.162,16.152,113.8927]
[1673367654496,17.0,16.161,16.152,113.8927]
[1673367655568,20.0,16.162,16.152,113.8927]
[1673367656928,20.0,16.163,16.152,113.8927]
[1673367657244,17.0,16.162,16.152,113.8927]
[1673367661961,17.0,16.162,16.151,20.0]
[1673367662177,40.0,16.161,16.144,46.47]
[1673367662386,17.0,16.16,16.14,164.7895]
[1673367662704,20.0,16.159,16.14,164.7895]
[1673367662899,59.59,16.159,16.14,164.7895]
[1673367663108,20.0,16.158,16.141,20.0]
[1673367663528,20.0,16.158,16.142,46.48]
[1673367664166,39.59,16.157,16.14,118.3095]
[1673367664578,20.0,16.156,16.14,118.3095]
[1673367664796,119.8117,16.155,16.14,118.3095]
[1673367665007,20.0,16.154,16.14,118.3095]
[1673367666174,20.0,16.154,16.141,20.0]
[1673367668162,119.8117,16.155,16.141,20.0]
[1673367668791,119.8117,16.155,16.141,40.0]
[1673367669854,119.8117,16.155,16.142,75.32651334]
[1673367670042,119.8117,16.155,16.143,20.0]
[1673367670481,119.8117,16.155,16.144,46.47]
[1673367670697,119.8117,16.155,16.143,20.0]
[1673367670698,119.8117,16.155,16.143,66.47]
[1673367671446,20.0,16.159,16.144,14.42325667]
[1673367671948,20.0,16.159,16.146,20.0]
[1673367672578,20.0,16.159,16.147,46.46]
[1673367673334,111.1457,16.164,16.148,34.42325667]
[1673367673547,111.1457,16.164,16.148,146.35185667]
[1673367673752,111.1457,16.164,16.149,75.30651334]
[1673367674075,20.0,16.163,16.15,34.42325667]
[1673367674492,111.1457,16.164,16.151,46.45]
[1673367675116,20.0,16.163,16.151,46.45]
[1673367675728,111.1457,16.164,16.151,46.45]
[1673367677114,111.1457,16.164,16.152,20.0]
[1673367677534,111.1457,16.164,16.153,46.44]
[1673367678885,20.0,16.163,16.152,46.45]
[1673367679101,111.1457,16.164,16.151,46.45]
[1673367679631,111.1457,16.164,16.152,20.0]
[1673367680057,111.1457,16.164,16.153,46.44]
[1673367682153,111.1457,16.164,16.151,14.42325667]
[1673367682365,111.1457,16.164,16.15,20.0]
[1673367682778,20.0,16.163,16.151,46.45]
[1673367683727,20.0,16.163,16.151,60.87325667]
[1673367683943,20.0,16.163,16.151,14.42325667]
[1673367684561,20.0,16.163,16.151,34.42325667]
[1673367684773,111.1457,16.164,16.151,34.42325667]
[1673367684991,20.0,16.163,16.151,14.42325667]
[1673367685202,20.0,16.163,16.152,46.45]
[1673367685412,20.0,16.163,16.151,14.42325667]
[1673367685638,20.0,16.163,16.15,46.45]
[1673367685836,20.0,16.163,16.151,20.0]
[1673367686760,20.0,16.163,16.151,40.0]
[1673367686992,111.1457,16.164,16.151,40.0]
[1673367687183,111.1457,16.164,16.152,46.45]
[1673367687605,111.1457,16.164,16.151,40.0]
[1673367688134,20.0,16.163,16.151,40.0]
[1673367688678,20.0,16.163,16.151,20.0]
[1673367689096,111.1457,16.164,16.151,20.0]
[1673367689315,111.1457,16.164,16.152,46.45]
[1673367689839,20.0,16.163,16.152,46.45]
[1673367691831,111.1457,16.164,16.152,46.45]
[1673367692050,111.1457,16.164,16.153,34.42325667]
[1673367692353,111.1457,16.164,16.153,20.0]
[1673367692674,111.1457,16.164,16.155,20.0]
[1673367692866,111.1457,16.164,16.154,60.86325667]
[1673367693074,20.0,16.163,16.154,46.44]
[1673367693290,20.0,16.163,16.152,46.45]
[1673367693496,20.0,16.163,16.151,20.0]
[1673367694038,20.0,16.163,16.15,20.0]
[1673367695924,20.0,16.163,16.15,66.45]
[1673367696772,20.0,16.163,16.15,20.0]
[1673367697396,20.0,16.163,16.137,46.3299]
[1673367697397,59.6,16.162,16.137,46.3299]
[1673367697607,20.0,16.161,16.139,117.4484]
[1673367697821,20.0,16.16,16.14,20.0]
[1673367698020,59.61,16.16,16.14,20.0]
[1673367698230,20.0,16.159,16.14,20.0]
[1673367698434,20.0,16.159,16.141,14.42325667]
[1673367698645,20.0,16.157,16.142,20.0]
[1673367698966,20.0,16.157,16.142,80.90325667]
[1673367699176,20.0,16.157,16.142,34.42325667]
[1673367699821,20.0,16.157,16.142,20.0]
[1673367702351,39.57,16.158,16.142,20.0]
[1673367702559,237.73604665,16.173,16.142,20.0]
[1673367702560,111.9616,16.173,16.143,46.47]
[1673367702772,109.005,16.169,16.144,21.92]
[1673367703085,20.0,16.168,16.146,20.0]
[1673367703413,20.0,16.168,16.147,155.71743675]
[1673367703726,20.0,16.168,16.148,35.47463675]
[1673367703926,20.0,16.168,16.149,20.0]
[1673367704134,20.0,16.168,16.15,20.0]
[1673367704460,20.0,16.168,16.151,20.0]
[1673367704653,20.0,16.168,16.151,81.92463675]
[1673367704863,20.0,16.168,16.152,15.47463675]
[1673367705404,20.0,16.168,16.153,46.44]
[1673367705805,111.9616,16.173,16.153,61.91463675]
[1673367706019,111.9616,16.173,16.153,108.0948827]
[1673367706243,111.9616,16.173,16.155,20.0]
[1673367706454,111.9616,16.173,16.156,133.0514]
[1673367706668,111.9616,16.173,16.157,20.0]
[1673367706880,111.9616,16.173,16.158,20.0]
[1673367707074,111.9616,16.173,16.158,66.43]
[1673367708879,20.0,16.172,16.158,66.43]
[1673367716014,20.0,16.172,16.158,81.90463675]
[1673367717160,111.9616,16.173,16.158,81.90463675]
[1673367717371,111.9616,16.173,16.159,20.0]
[1673367717582,111.9616,16.173,16.16,20.0]
[1673367717803,111.9616,16.173,16.16,81.89463675]
[1673367719384,20.0,16.172,16.16,81.89463675]
[1673367720223,111.9616,16.173,16.16,81.89463675]
[1673367721686,20.0,16.172,16.16,81.89463675]
[1673367721897,20.0,16.172,16.16,66.42]
[1673367723366,111.9616,16.173,16.16,66.42]
[1673367723894,17.0,16.172,16.16,66.42]
[1673367724417,37.0,16.172,16.16,66.42]
[1673367725687,17.0,16.172,16.16,66.42]
[1673367725898,111.9616,16.173,16.161,17.0]
[1673367726314,111.9616,16.173,16.163,20.0]
[1673367726635,111.9616,16.173,16.162,46.42]
[1673367727039,111.9616,16.173,16.161,46.42]
[1673367727251,111.9616,16.173,16.162,20.0]
[1673367727679,111.9616,16.173,16.163,46.42]
[1673367728726,17.0,16.172,16.161,46.42]
[1673367728933,59.63,16.187,16.163,20.0]
[1673367729152,20.0,16.187,16.164,171.74603675]
[1673367729367,20.0,16.187,16.165,20.96]
[1673367729567,20.0,16.187,16.167,20.0]
[1673367729785,20.0,16.187,16.168,20.0]
[1673367729996,20.0,16.189,16.169,20.0]
[1673367730204,20.0,16.189,16.17,20.0]
[1673367730430,109.1756,16.19,16.171,156.2714]
[1673367730625,20.0,16.189,16.173,20.0]
[1673367730830,20.0,16.189,16.174,27.0]
[1673367731047,109.1756,16.19,16.175,20.0]
[1673367731256,109.1756,16.19,16.176,17.0]
[1673367731472,109.1756,16.19,16.176,78.85463675]
[1673367732215,109.1756,16.19,16.177,40.0]
[1673367732738,109.1756,16.19,16.178,46.37]
[1673367732950,109.1756,16.19,16.179,40.0]
[1673367733356,109.1756,16.19,16.18,46.37]
[1673367733569,116.0084,16.191,16.181,20.0]
[1673367733783,116.0084,16.191,16.181,35.47463675]
[1673367733984,116.0084,16.191,16.182,46.36]
[1673367734195,20.0,16.195,16.183,20.0]
[1673367734400,20.0,16.195,16.182,46.36]
[1673367734401,20.0,16.195,16.184,17.0]
[1673367734615,20.0,16.195,16.182,46.36]
[1673367735577,20.0,16.195,16.183,17.0]
[1673367735992,20.0,16.195,16.184,46.35]
[1673367736200,112.1905,16.196,16.184,46.35]
[1673367736527,45.6670091,16.202,16.184,61.82463675]
[1673367736721,20.0,16.201,16.184,46.35]
[1673367737259,20.0,16.201,16.184,61.82463675]
[1673367737580,20.0,16.201,16.184,46.35]
[1673367737787,59.71,16.201,16.183,46.36]
[1673367738101,131.218,16.2,16.183,46.36]
[1673367738315,17.0,16.198,16.182,46.36]
[1673367738526,20.0,16.197,16.182,46.36]
[1673367738842,17.0,16.196,16.182,46.36]
[1673367739359,20.0,16.197,16.183,32.47463675]
[1673367739783,20.0,16.197,16.184,46.35]
[1673367740102,20.0,16.197,16.184,61.82463675]
[1673367740728,17.0,16.196,16.184,46.35]
[1673367741356,17.0,16.196,16.183,56.40722665]
[1673367741897,17.0,16.196,16.182,46.36]
[1673367742080,20.0,16.195,16.181,66.36]
[1673367742411,17.0,16.194,16.181,66.36]
[1673367743133,17.0,16.194,16.182,20.0]
[1673367743662,17.0,16.194,16.183,46.36]
[1673367743869,20.0,16.197,16.183,46.36]
[1673367744197,17.0,16.196,16.183,118.2418634]
[1673367745457,17.0,16.196,16.183,102.76722665]
[1673367745860,20.0,16.195,16.182,46.36]
[1673367746067,17.0,16.194,16.182,46.36]
[1673367747861,17.0,16.194,16.18,46.37]
[1673367755146,17.0,16.194,16.181,20.0]
[1673367755537,17.0,16.194,16.182,46.36]
[1673367755850,17.0,16.194,16.181,46.36]
[1673367758367,17.0,16.194,16.18,46.37]
[1673367758811,17.0,16.194,16.181,20.0]
[1673367759024,17.0,16.194,16.18,46.37]
[1673367761015,17.0,16.194,16.181,20.0]
[1673367761533,17.0,16.194,16.182,46.36]
[1673367761958,17.0,16.194,16.181,46.36]
[1673367762281,20.0,16.193,16.181,46.36]
[1673367762491,17.0,16.192,16.18,46.37]
[1673367763215,116.7746,16.191,16.18,46.37]
[1673367763423,116.7746,16.191,16.181,20.0]
[1673367764679,116.7746,16.191,16.182,46.36]
[1673367764905,17.0,16.19,16.179,56.40722665]
[1673367765225,17.0,16.19,16.18,20.0]
[1673367765226,20.0,16.189,16.18,20.0]
[1673367765423,17.0,16.188,16.18,20.0]
[1673367765835,17.0,16.188,16.179,20.0]
[1673367766057,17.0,16.189,16.177,46.37]
[1673367766369,17.0,16.189,16.171,61.86]
[1673367766370,17.0,16.189,16.174,46.38]
[1673367766883,20.0,16.188,16.172,46.39]
[1673367767096,17.0,16.187,16.171,61.86]
[1673367767515,39.67,16.186,16.171,61.86]
[1673367767726,37.0,16.185,16.171,61.86]
[1673367767935,20.0,16.184,16.171,61.86]
[1673367768161,17.0,16.183,16.171,61.86]
[1673367768383,17.0,16.183,16.17,61.86]
[1673367768595,110.9207,16.182,16.17,61.86]
[1673367768804,17.0,16.181,16.17,61.86]
[1673367769314,17.0,16.181,16.169,61.86]
[1673367769315,20.0,16.18,16.169,61.86]
[1673367769522,17.0,16.179,16.169,61.86]
[1673367769737,17.0,16.179,16.171,61.86]
[1673367770264,17.0,16.18,16.171,61.86]
[1673367770902,17.0,16.181,16.171,61.86]
[1673367771859,37.0,16.181,16.171,61.86]
[1673367772066,37.0,16.181,16.168,113.969]
[1673367772067,37.0,16.181,16.165,46.41]
[1673367772281,20.0,16.18,16.164,95.31176251]
[1673367772474,17.0,16.179,16.159,15.47463675]
[1673367772686,17.0,16.179,16.159,64.37639926]
[1673367772896,20.0,16.178,16.16,46.42]
[1673367773106,17.0,16.177,16.16,46.42]
[1673367773325,57.57,16.177,16.16,46.42]
[1673367773736,20.0,16.176,16.16,46.42]
[1673367773946,37.0,16.175,16.156,46.44]
[1673367774161,204.89255296,16.175,16.155,15.47463675]
[1673367774793,20.0,16.174,16.155,15.47463675]
[1673367775006,37.0,16.173,16.155,15.47463675]
[1673367775233,191.001,16.173,16.155,15.47463675]
[1673367775759,20.0,16.172,16.152,95.35176251]
[1673367775966,37.0,16.171,16.152,95.35176251]
[1673367776182,77.37,16.171,16.152,61.92463675]
[1673367776393,77.37,16.171,16.152,46.45]
[1673367776821,20.0,16.17,16.152,46.45]
[1673367777023,20.0,16.168,16.152,46.45]
[1673367777445,17.0,16.167,16.152,46.45]
[1673367777658,17.0,16.167,16.153,15.47463675]
[1673367777867,17.0,16.167,16.153,30.9492735]
[1673367778071,17.0,16.167,16.153,15.47463675]
[1673367778714,17.0,16.167,16.153,35.47463675]
[1673367779646,20.0,16.17,16.153,35.47463675]
[1673367779855,20.0,16.169,16.155,20.0]
[1673367780282,20.0,16.169,16.156,46.44]
[1673367780907,20.0,16.171,16.156,46.44]
[1673367781116,17.0,16.17,16.156,61.91463675]
[1673367781328,17.0,16.17,16.156,15.47463675]
[1673367781638,113.441,16.173,16.158,20.0]
[1673367781849,113.441,16.173,16.159,20.0]
[1673367782068,113.441,16.173,16.16,20.0]
[1673367782274,113.441,16.173,16.16,35.47463675]
[1673367782484,113.441,16.173,16.161,61.89463675]
[1673367782899,113.441,16.173,16.162,15.47463675]
[1673367783533,113.441,16.173,16.163,46.42]
[1673367783862,113.441,16.173,16.163,61.89463675]
[1673367784079,113.441,16.173,16.163,15.47463675]
[1673367785639,113.441,16.173,16.163,61.89463675]
[1673367787440,113.441,16.173,16.163,15.47463675]
[1673367787849,113.441,16.173,16.161,46.42]
[1673367788060,113.441,16.173,16.162,15.46147943]
[1673367788580,113.441,16.173,16.163,46.42]
[1673367789119,113.441,16.173,16.163,61.88147943]
[1673367789313,113.441,16.173,16.163,15.46147943]
[1673367791434,113.441,16.173,16.164,46.41]
[1673367791627,113.441,16.173,16.163,61.88147943]
[1673367792270,20.0,16.178,16.163,61.88147943]
[1673367793639,20.0,16.178,16.163,46.42]
[1673367793832,20.0,16.173,16.147,20.0]
[1673367794054,20.0,16.173,16.15,116.457]
[1673367794365,76.67,16.172,16.151,20.0]
[1673367794566,20.0,16.171,16.152,20.0]
[1673367794778,37.0,16.17,16.152,20.0]
[1673367795004,20.0,16.169,16.152,20.0]
[1673367795217,17.0,16.168,16.152,20.0]
[1673367795420,20.0,16.167,16.151,66.45]
[1673367795635,20.0,16.165,16.152,15.46147943]
[1673367795827,136.893,16.164,16.151,20.0]
[1673367796032,176.513,16.164,16.151,20.0]
[1673367796270,20.0,16.163,16.151,20.0]
[1673367796466,17.0,16.162,16.151,20.0]
[1673367797610,20.0,16.161,16.151,20.0]
[1673367797820,17.0,16.16,16.151,20.0]
[1673367800884,17.0,16.16,16.148,20.0]
[1673367801188,17.0,16.16,16.145,156.0554]
[1673367801423,20.0,16.158,16.145,109.5854]
[1673367801614,17.0,16.157,16.145,109.5854]
[1673367802248,17.0,16.157,16.143,15.46147943]
[1673367803075,20.0,16.156,16.143,15.46147943]
[1673367803291,17.0,16.155,16.143,15.46147943]
[1673367803503,20.0,16.154,16.143,15.46147943]
[1673367804765,17.0,16.153,16.143,15.46147943]
[1673367805401,20.0,16.157,16.14,109.5854]
[1673367805402,20.0,16.158,16.145,66.47]
[1673367805612,59.58,16.162,16.145,66.47]
[1673367805823,59.58,16.162,16.146,17.0]
[1673367806040,59.58,16.162,16.145,81.93147943]
[1673367806239,59.58,16.162,16.145,61.93147943]
[1673367807086,17.0,16.158,16.145,61.93147943]
[1673367808238,17.0,16.158,16.145,15.46147943]
[1673367808459,17.0,16.158,16.145,61.93147943]
[1673367809068,39.58,16.162,16.145,61.93147943]
[1673367809298,159.483,16.164,16.146,37.0]
[1673367809505,20.0,16.163,16.147,20.0]
[1673367809723,20.0,16.163,16.148,37.0]
[1673367809934,20.0,16.163,16.149,20.0]
[1673367810142,119.893,16.164,16.15,37.0]
[1673367810459,119.893,16.164,16.151,20.0]
[1673367812965,119.893,16.164,16.151,35.46147943]
[1673367813174,119.893,16.164,16.151,20.0]
[1673367813697,20.0,16.163,16.151,20.0]
[1673367813908,20.0,16.163,16.151,15.55270925]
[1673367815166,20.0,16.163,16.15,37.0]
[1673367816002,20.0,16.163,16.151,15.55270925]
[1673367816446,119.893,16.164,16.151,15.55270925]
[1673367816644,59.61,16.167,16.151,15.55270925]
[1673367816848,20.0,16.167,16.152,17.0]
[1673367817072,20.0,16.167,16.153,20.0]
[1673367817270,20.0,16.167,16.154,17.0]
[1673367818765,20.0,16.165,16.152,15.55270925]
[1673367818987,131.339,16.164,16.152,15.55270925]
[1673367819165,20.0,16.163,16.152,15.55270925]
[1673367819374,20.0,16.163,16.153,17.0]
[1673367819584,114.339,16.164,16.153,17.0]
[1673367820659,114.339,16.164,16.153,63.44]
[1673367820973,114.339,16.164,16.153,17.0]
[1673367823165,114.339,16.164,16.153,33.06428945]
[1673367825474,20.0,16.167,16.153,33.06428945]
[1673367826521,20.0,16.167,16.153,79.50428945]
[1673367827051,17.0,16.166,16.151,46.45]
[1673367827264,20.0,16.165,16.15,20.0]
[1673367827585,20.0,16.163,16.15,20.0]
[1673367828011,17.0,16.162,16.15,20.0]
[1673367828348,20.0,16.161,16.151,20.0]
[1673367828542,17.0,16.16,16.148,20.0]
[1673367830850,17.0,16.16,16.149,20.0]
[1673367831057,20.0,16.163,16.15,20.0]
[1673367831373,17.0,16.162,16.15,20.0]
[1673367831796,20.0,16.163,16.15,20.0]
[1673367833352,17.0,16.162,16.15,20.0]
[1673367836511,116.6321,16.164,16.151,33.06428945]
[1673367836716,116.6321,16.164,16.151,16.06428945]
[1673367836934,20.0,16.163,16.151,20.0]
[1673367837358,116.6321,16.164,16.151,20.0]
[1673367837894,17.0,16.163,16.151,20.0]
[1673367838297,37.0,16.163,16.151,36.06428945]
[1673367838843,116.6321,16.164,16.151,36.06428945]
[1673367839693,20.0,16.163,16.151,36.06428945]
[1673367840084,20.0,16.163,16.151,16.06428945]
[1673367841771,17.0,16.162,16.151,16.06428945]
[1673367843145,20.0,16.163,16.151,16.06428945]
[1673367843467,116.6321,16.164,16.152,17.0]
[1673367843873,116.6321,16.164,16.153,36.06428945]
[1673367844194,116.6321,16.164,16.154,33.06428945]
[1673367845346,116.6321,16.164,16.154,16.06428945]
[1673367845567,116.6321,16.164,16.153,20.0]
[1673367846489,179.493,16.173,16.154,79.50428945]
[1673367846711,139.893,16.173,16.154,99.50428945]
[1673367847034,119.893,16.173,16.155,72.77521121]
[1673367847255,119.893,16.173,16.156,37.0]
[1673367847559,119.893,16.173,16.156,120.15092176]
[1673367847774,110.4821,16.176,16.158,20.0]
[1673367847983,110.4821,16.176,16.159,20.0]
[1673367848182,59.58,16.181,16.159,82.49428945]
[1673367848389,170.0621,16.181,16.16,33.06428945]
[1673367848601,170.0621,16.181,16.162,20.0]
[1673367848817,170.0621,16.181,16.163,17.0]
[1673367849025,170.0621,16.181,16.164,20.0]
[1673367849237,170.0621,16.181,16.165,17.0]
[1673367849455,20.0,16.179,16.164,16.06428945]
[1673367849662,17.0,16.178,16.164,16.06428945]
[1673367850488,20.0,16.177,16.164,16.06428945]
[1673367850694,17.0,16.176,16.164,16.06428945]
[1673367851142,17.0,16.176,16.162,46.42]
[1673367851345,17.0,16.176,16.162,62.48428945]
[1673367851756,17.0,16.176,16.162,16.06428945]
[1673367851975,20.0,16.175,16.161,20.0]
[1673367852189,17.0,16.174,16.161,20.0]
[1673367852382,17.0,16.174,16.158,40.0]
[1673367852593,110.8071,16.173,16.158,40.0]
[1673367852900,37.0,16.172,16.158,40.0]
[1673367853556,17.0,16.172,16.158,40.0]
[1673367856068,37.0,16.172,16.158,56.06428945]
[1673367856599,17.0,16.172,16.159,17.0]
[1673367857010,110.8071,16.173,16.16,36.06428945]
[1673367857213,110.8071,16.173,16.161,17.0]
[1673367857424,110.8071,16.173,16.161,16.06428945]
[1673367857864,20.0,16.172,16.161,16.06428945]
[1673367858168,20.0,16.172,16.16,20.0]
[1673367858413,56.65,16.171,16.157,20.0]
[1673367858798,20.0,16.17,16.157,20.0]
[1673367859007,17.0,16.169,16.158,16.06428945]
[1673367859224,56.65,16.171,16.158,16.06428945]
[1673367859438,56.65,16.171,16.159,20.0]
[1673367860570,17.0,16.171,16.159,20.0]
[1673367861850,20.0,16.171,16.159,36.06428945]
[1673367863328,20.0,16.172,16.159,36.06428945]
[1673367865730,150.4371,16.173,16.16,20.0]
[1673367865944,110.8071,16.173,16.161,17.0]
[1673367866162,110.8071,16.173,16.161,33.06428945]
[1673367866702,20.0,16.172,16.161,33.06428945]
[1673367869954,20.0,16.172,16.159,66.43]
[1673367870273,20.0,16.172,16.16,17.0]
[1673367870486,20.0,16.172,16.161,20.0]
[1673367871215,130.8071,16.173,16.162,16.06428945]
[1673367871216,110.8071,16.173,16.162,16.06428945]
[1673367871428,110.8071,16.173,16.163,17.0]
[1673367876874,39.64,16.176,16.163,17.0]
[1673367877738,39.64,16.178,16.163,17.0]
[1673367879295,39.64,16.178,16.162,20.0]
[1673367879509,56.65,16.176,16.162,20.0]
[1673367879710,56.65,16.176,16.161,133.9162]
[1673367879924,20.0,16.175,16.161,133.9162]
[1673367880135,20.0,16.173,16.161,133.9162]
[1673367880367,132.7607,16.173,16.161,133.9162]
[1673367886865,132.7607,16.173,16.162,17.0]
[1673367891091,112.7607,16.173,16.162,17.0]
[1673367891499,112.7607,16.173,16.163,20.0]
[1673367891714,112.7607,16.173,16.162,17.0]
[1673367891943,112.7607,16.173,16.162,32.17875969]
[1673367892150,112.7607,16.173,16.162,17.0]
[1673367893627,112.7607,16.173,16.161,133.9162]
[1673367893831,20.0,16.172,16.161,133.9162]
[1673367894462,20.0,16.17,16.161,133.9162]
[1673367897196,17.0,16.171,16.161,133.9162]
[1673367898982,112.7607,16.173,16.161,133.9162]
[1673367899508,20.0,16.172,16.161,133.9162]
[1673367900962,112.7607,16.173,16.161,133.9162]
[1673367901180,17.0,16.172,16.161,133.9162]
[1673367901502,37.0,16.172,16.161,133.9162]
[1673367902543,17.0,16.172,16.162,20.0]
[1673367903396,17.0,16.172,16.161,133.9162]
[1673367903943,37.0,16.172,16.161,133.9162]
[1673367904260,17.0,16.172,16.161,133.9162]
[1673367904782,17.0,16.172,16.162,20.0]
[1673367906464,112.7607,16.173,16.162,20.0]
[1673367907176,112.7607,16.173,16.162,66.42]
[1673367909802,112.7607,16.173,16.162,46.42]
[1673367910007,20.0,16.172,16.162,46.42]
[1673367910232,17.0,16.171,16.161,35.17875969]
[1673367910446,20.0,16.17,16.161,20.0]
[1673367910653,17.0,16.169,16.156,20.0]
[1673367911194,17.0,16.169,16.157,20.0]
[1673367911380,17.0,16.169,16.158,20.0]
[1673367912652,17.0,16.169,16.156,20.0]
[1673367912975,17.0,16.169,16.157,20.0]
[1673367913174,17.0,16.169,16.158,20.0]
[1673367913810,112.7607,16.173,16.159,20.0]
[1673367914021,17.0,16.172,16.16,20.0]
[1673367914969,37.0,16.172,16.16,20.0]
[1673367916012,112.7607,16.173,16.16,20.0]
[1673367916336,112.7607,16.173,16.161,52.17875969]
[1673367916761,112.7607,16.173,16.162,61.59875969]
[1673367916946,112.7607,16.173,16.163,37.0]
[1673367917912,59.63,16.18,16.163,37.0]
[1673367918103,20.0,16.18,16.165,20.0]
[1673367918320,20.0,16.18,16.166,37.0]
[1673367918570,20.0,16.18,16.167,20.0]
[1673367918794,20.0,16.18,16.168,20.0]
[1673367918985,20.0,16.18,16.168,37.0]
[1673367919185,20.0,16.18,16.168,52.17875969]
[1673367919713,20.0,16.181,16.168,52.17875969]
[1673367919940,20.0,16.181,16.169,20.0]
[1673367920148,20.0,16.181,16.17,37.0]
[1673367920361,109.2309,16.182,16.17,37.0]
[1673367920545,109.2309,16.182,16.17,98.57875969]
[1673367920760,59.67,16.189,16.17,98.57875969]
[1673367920971,20.0,16.189,16.171,82.70354602]